[Event "Vastgota Open 2022"]
[Site "Skara stadshotell, Jarnvagsgatan 5, Skara, Sweden"]
[Date "2022.10.30"]
[Round "6.1"]
[White "Blomqvist, Erik"]
[Black "Cramling, Pia"]
[Result "1-0"]
[TimeControl "30 minutes + 10 seconds per move from move one."]
[WhiteTitle "GM"]
[BlackTitle "GM"]
[WhiteFideId "1709437"]
[BlackFideId "1700030"]
[WhiteElo "2490"]
[BlackElo "2421"]

1. d4 {[%clk 00:30:15]} {[%emt 14:31:16]} Nf6 {[%clk 00:30:12]} {[%emt
00:00:04]} 2. Bf4 {[%clk 00:30:22]} {[%emt 00:00:03]} b6 {[%clk 00:29:04]}
{[%emt 00:01:18]} 3. Nc3 {[%clk 00:30:20]} {[%emt 00:00:12]} e6 {[%clk
00:27:58]} {[%emt 00:01:16]} 4. e4 {[%clk 00:30:01]} {[%emt 00:00:30]} Bb4
{[%clk 00:27:15]} {[%emt 00:00:52]} 5. f3 {[%clk 00:29:34]} {[%emt 00:00:37]}
O-O {[%clk 00:23:57]} {[%emt 00:03:28]} 6. Qd2 {[%clk 00:29:01]} {[%emt
00:00:43]} d5 {[%clk 00:23:47]} {[%emt 00:00:20]} 7. e5 {[%clk 00:28:26]}
{[%emt 00:00:45]} Nfd7 {[%clk 00:23:54]} {[%emt 00:00:02]} 8. Bg5 {[%clk
00:26:34]} {[%emt 00:02:02]} Be7 {[%clk 00:22:55]} {[%emt 00:01:09]} 9. Bxe7
{[%clk 00:21:53]} {[%emt 00:04:52]} Qxe7 {[%clk 00:23:03]} {[%emt 00:00:01]} 10.
f4 {[%clk 00:22:01]} {[%emt 00:00:02]} Ba6 {[%clk 00:22:42]} {[%emt 00:00:31]}
11. Bxa6 {[%clk 00:20:19]} {[%emt 00:01:54]} Nxa6 {[%clk 00:22:50]} {[%emt
00:00:01]} 12. Nf3 {[%clk 00:20:27]} {[%emt 00:00:02]} c5 {[%clk 00:22:27]}
{[%emt 00:00:31]} 13. Nb5 {[%clk 00:20:35]} {[%emt 00:00:04]} f6 {[%clk
00:21:34]} {[%emt 00:01:02]} 14. c3 {[%clk 00:19:40]} {[%emt 00:01:06]} fxe5
{[%clk 00:18:05]} {[%emt 00:03:38]} 15. fxe5 {[%clk 00:19:41]} {[%emt
00:00:11]} Ndb8 {[%clk 00:17:37]} {[%emt 00:00:35]} 16. O-O {[%clk 00:18:00]}
{[%emt 00:01:52]} Nc6 {[%clk 00:17:43]} {[%emt 00:00:03]} 17. Nd6 {[%clk
00:15:14]} {[%emt 00:02:56]} Nc7 {[%clk 00:17:30]} {[%emt 00:00:23]} 18. Ng5
{[%clk 00:08:43]} {[%emt 00:06:41]} cxd4 {[%clk 00:12:19]} {[%emt 00:05:21]} 19.
cxd4 {[%clk 00:08:50]} {[%emt 00:00:04]} Nxd4 {[%clk 00:12:12]} {[%emt
00:00:17]} 20. Nxh7 {[%clk 00:08:14]} {[%emt 00:00:46]} Rxf1+ {[%clk 00:09:50]}
{[%emt 00:02:32]} 21. Rxf1 {[%clk 00:08:21]} {[%emt 00:00:03]} Nf5 {[%clk
00:09:56]} {[%emt 00:00:04]} 22. Ng5 {[%clk 00:06:17]} {[%emt 00:02:14]} Rf8
{[%clk 00:09:29]} {[%emt 00:00:38]} 23. Qf4 {[%clk 00:02:02]} {[%emt 00:04:24]}
d4 {[%clk 00:06:06]} {[%emt 00:03:34]} 24. Nxe6 {[%clk 00:00:38]} {[%emt
00:01:33]} Nxe6 {[%clk 00:06:07]} {[%emt 00:00:09]} 25. Nxf5 {[%clk 00:00:46]}
{[%emt 00:00:03]} Qc5 {[%clk 00:03:38]} {[%emt 00:02:39]} 26. Qg4 {[%clk
00:00:27]} {[%emt 00:00:29]} d3+ {[%clk 00:02:57]} {[%emt 00:00:51]} 27. Kh1
{[%clk 00:00:36]} d2 {[%clk 00:02:36]} {[%emt 00:00:32]} 28. h3 {[%clk
00:00:35]} {[%emt 00:00:11]} a5 {[%clk 00:01:44]} {[%emt 00:01:02]} 29. Rd1
{[%clk 00:00:19]} {[%emt 00:00:25]} Qxe5 {[%clk 00:00:56]} {[%emt 00:00:59]} 30.
Ne7+ {[%clk 00:00:28]} Kf7 {[%clk 00:01:05]} {[%emt 00:00:01]} 31. Ng6 {[%clk
00:00:37]} {[%emt 00:00:01]} Qe1+ {[%clk 00:01:11]} {[%emt 00:00:06]} 32. Kh2
{[%clk 00:00:46]} Re8 {[%clk 00:00:52]} {[%emt 00:00:27]} 33. Qh5 {[%clk
00:00:40]} {[%emt 00:00:17]} Kf6 {[%clk 00:00:53]} {[%emt 00:00:08]} 34. Nh4
{[%clk 00:00:20]} {[%emt 00:00:30]} Ke7 {[%clk 00:00:32]} {[%emt 00:00:32]} 35.
Ng6+ {[%clk 00:00:17]} {[%emt 00:00:14]} Kf6 {[%clk 00:00:37]} {[%emt
00:00:04]} 36. Nh4 {[%clk 00:00:25]} {[%emt 00:00:02]} Ke7 {[%clk 00:00:47]} 37.
Nf5+ {[%clk 00:00:25]} {[%emt 00:00:09]} Kf6 {[%clk 00:00:46]} {[%emt
00:00:09]} 38. Nd6 {[%clk 00:00:24]} {[%emt 00:00:12]} Rf8 {[%clk 00:00:46]}
{[%emt 00:00:09]} 39. Rxd2 {[%clk 00:00:30]} {[%emt 00:00:06]} Qe5+ {[%clk
00:00:38]} {[%emt 00:00:18]} 40. Qxe5+ {[%clk 00:00:39]} Kxe5 {[%clk 00:00:47]}
{[%emt 00:00:01]} 41. Nc4+ {[%clk 00:00:48]} {[%emt 00:00:02]} Ke4 {[%clk
00:00:45]} {[%emt 00:00:10]} 42. Re2+ {[%clk 00:00:43]} {[%emt 00:00:16]} Kd4
{[%clk 00:00:44]} {[%emt 00:00:10]} 43. Rxe6 {[%clk 00:00:47]} {[%emt
00:00:07]} Kxc4 {[%clk 00:00:53]} {[%emt 00:00:01]} 44. Rxb6 {[%clk 00:00:56]}
Rf7 {[%clk 00:00:40]} {[%emt 00:00:24]} 45. a4 {[%clk 00:00:59]} {[%emt
00:00:07]} 1-0

[Event "Vastgota Open 2022"]
[Site "Skara stadshotell, Jarnvagsgatan 5, Skara, Sweden"]
[Date "2022.10.30"]
[Round "6.2"]
[White "Johansson, Ulf"]
[Black "Golubka, Petro"]
[Result "0-1"]
[TimeControl "30 minutes + 10 seconds per move from move one."]
[BlackTitle "GM"]
[WhiteFideId "1701380"]
[BlackFideId "14114224"]
[WhiteElo "2183"]
[BlackElo "2335"]

1. Nf3 {[%clk 00:30:16]} {[%emt 00:00:03]} g6 {[%clk 00:29:59]} {[%emt
00:00:23]} 2. g3 {[%clk 00:30:14]} {[%emt 00:00:11]} Bg7 {[%clk 00:29:50]}
{[%emt 00:00:19]} 3. d4 {[%clk 00:30:19]} {[%emt 00:00:05]} Nf6 {[%clk
00:29:49]} {[%emt 00:00:12]} 4. Bg2 {[%clk 00:30:22]} {[%emt 00:00:06]} O-O
{[%clk 00:29:55]} {[%emt 00:00:05]} 5. O-O {[%clk 00:30:27]} {[%emt 00:00:04]}
d6 {[%clk 00:30:04]} {[%emt 00:00:02]} 6. Nc3 {[%clk 00:30:30]} {[%emt
00:00:07]} d5 {[%clk 00:29:19]} {[%emt 00:00:55]} 7. Ne5 {[%clk 00:30:11]}
{[%emt 00:00:28]} Bf5 {[%clk 00:29:18]} {[%emt 00:00:11]} 8. h3 {[%clk
00:28:04]} {[%emt 00:02:16]} c6 {[%clk 00:29:13]} {[%emt 00:00:17]} 9. a4
{[%clk 00:27:35]} {[%emt 00:00:38]} a5 {[%clk 00:29:09]} {[%emt 00:00:14]} 10.
g4 {[%clk 00:27:15]} {[%emt 00:00:30]} Bc8 {[%clk 00:29:04]} {[%emt 00:00:16]}
11. f4 {[%clk 00:26:34]} {[%emt 00:00:50]} Nbd7 {[%clk 00:29:11]} {[%emt
00:00:04]} 12. Qe1 {[%clk 00:22:17]} {[%emt 00:04:26]} Ne8 {[%clk 00:28:19]}
{[%emt 00:01:02]} 13. e4 {[%clk 00:20:25]} {[%emt 00:02:02]} dxe4 {[%clk
00:27:56]} {[%emt 00:00:34]} 14. Nxe4 {[%clk 00:20:32]} {[%emt 00:00:02]} Ndf6
{[%clk 00:26:51]} {[%emt 00:01:15]} 15. Ng5 {[%clk 00:17:33]} {[%emt 00:03:09]}
Qxd4+ {[%clk 00:26:07]} {[%emt 00:00:56]} 16. Be3 {[%clk 00:17:30]} {[%emt
00:00:11]} Qd8 {[%clk 00:25:39]} {[%emt 00:00:38]} 17. Rd1 {[%clk 00:17:03]}
{[%emt 00:00:37]} Qc7 {[%clk 00:25:15]} {[%emt 00:00:34]} 18. Qf2 {[%clk
00:15:49]} {[%emt 00:01:23]} Nd6 {[%clk 00:20:34]} {[%emt 00:04:52]} 19. c4
{[%clk 00:15:14]} {[%emt 00:00:45]} h6 {[%clk 00:20:18]} {[%emt 00:00:26]} 20.
c5 {[%clk 00:14:07]} {[%emt 00:01:17]} hxg5 {[%clk 00:18:15]} {[%emt 00:02:13]}
21. cxd6 {[%clk 00:14:14]} {[%emt 00:00:03]} exd6 {[%clk 00:18:18]} {[%emt
00:00:07]} 22. fxg5 {[%clk 00:13:24]} {[%emt 00:00:59]} Nd5 {[%clk 00:18:06]}
{[%emt 00:00:23]} 23. Bxd5 {[%clk 00:11:26]} {[%emt 00:02:08]} Bxe5 {[%clk
00:17:48]} {[%emt 00:00:28]} 24. Be4 {[%clk 00:10:44]} {[%emt 00:00:52]} Be6
{[%clk 00:17:38]} {[%emt 00:00:20]} 25. Qc2 {[%clk 00:10:49]} {[%emt 00:00:05]}
Kg7 {[%clk 00:17:27]} {[%emt 00:00:20]} 26. Bf4 {[%clk 00:10:30]} {[%emt
00:00:29]} Bxf4 {[%clk 00:17:09]} {[%emt 00:00:29]} 27. Rxf4 {[%clk 00:10:36]}
{[%emt 00:00:03]} d5 {[%clk 00:16:55]} {[%emt 00:00:25]} 28. Qc3+ {[%clk
00:10:38]} {[%emt 00:00:08]} Kg8 {[%clk 00:16:34]} {[%emt 00:00:31]} 0-1

[Event "Vastgota Open 2022"]
[Site "Skara stadshotell, Jarnvagsgatan 5, Skara, Sweden"]
[Date "2022.10.30"]
[Round "6.3"]
[White "Eklund, Lars-Goran"]
[Black "Nilsson, Patrik"]
[Result "1/2-1/2"]
[TimeControl "30 minutes + 10 seconds per move from move one."]
[WhiteTitle "FM"]
[WhiteFideId "1701010"]
[BlackFideId "1708171"]
[WhiteElo "2176"]
[BlackElo "2085"]

1. Nf3 {[%clk 00:30:17]} {[%emt 00:08:19]} f5 {[%clk 00:30:05]} {[%emt
00:00:14]} 2. e4 {[%clk 00:27:57]} {[%emt 00:02:31]} fxe4 {[%clk 00:30:12]}
{[%emt 00:00:03]} 3. Ng5 {[%clk 00:28:06]} d5 {[%clk 00:30:20]} {[%emt
00:00:03]} 4. d3 {[%clk 00:28:15]} Qd6 {[%clk 00:30:21]} {[%emt 00:00:09]} 5.
dxe4 {[%clk 00:28:12]} {[%emt 00:00:13]} h6 {[%clk 00:30:27]} {[%emt 00:00:03]}
6. Qh5+ {[%clk 00:27:59]} {[%emt 00:00:25]} g6 {[%emt 00:00:15]} 7. Qh4 {[%clk
00:28:06]} {[%emt 00:00:01]} Qe5 {[%clk 00:27:56]} {[%emt 00:02:37]} 8. Nf3
{[%clk 00:25:46]} {[%emt 00:02:30]} Qxe4+ {[%clk 00:27:21]} {[%emt 00:00:45]} 9.
Qxe4 {[%clk 00:25:54]} {[%emt 00:00:02]} dxe4 {[%clk 00:27:29]} {[%emt
00:00:02]} 10. Ne5 {[%clk 00:22:25]} {[%emt 00:03:39]} g5 {[%clk 00:27:26]}
{[%emt 00:00:13]} 11. Ng6 {[%clk 00:22:08]} {[%emt 00:00:28]} Rh7 {[%clk
00:27:24]} {[%emt 00:00:11]} 12. Nxf8 {[%clk 00:22:00]} {[%emt 00:00:20]} Kxf8
{[%clk 00:27:27]} {[%emt 00:00:05]} 13. h4 {[%clk 00:21:55]} {[%emt 00:00:15]}
g4 {[%clk 00:27:03]} {[%emt 00:00:34]} 14. Bf4 {[%clk 00:18:21]} {[%emt
00:03:44]} c6 {[%clk 00:26:48]} {[%emt 00:00:26]} 15. Nc3 {[%clk 00:17:27]}
{[%emt 00:01:05]} Bf5 {[%clk 00:26:06]} {[%emt 00:00:51]} 16. O-O-O {[%clk
00:16:18]} {[%emt 00:01:18]} Ke8 {[%clk 00:25:06]} {[%emt 00:01:11]} 17. g3
{[%clk 00:11:50]} {[%emt 00:04:38]} Nf6 {[%clk 00:22:27]} {[%emt 00:02:48]} 18.
Bg2 {[%clk 00:10:29]} {[%emt 00:01:32]} Nbd7 {[%clk 00:22:16]} {[%emt
00:00:22]} 19. Rhe1 {[%clk 00:10:10]} {[%emt 00:00:27]} Nc5 {[%clk 00:20:36]}
{[%emt 00:01:50]} 20. b4 {[%clk 00:06:03]} {[%emt 00:04:18]} Ne6 {[%clk
00:20:43]} {[%emt 00:00:03]} 21. Be3 {[%clk 00:06:11]} {[%emt 00:00:01]} a5
{[%clk 00:19:59]} {[%emt 00:00:55]} 22. a3 {[%clk 00:06:18]} {[%emt 00:00:03]}
axb4 {[%clk 00:19:40]} {[%emt 00:00:29]} 23. axb4 {[%clk 00:06:27]} {[%emt
00:00:03]} Ra1+ {[%clk 00:19:24]} {[%emt 00:00:24]} 24. Kb2 {[%clk 00:06:35]}
{[%emt 00:00:02]} Rxd1 {[%clk 00:19:32]} {[%emt 00:00:02]} 25. Rxd1 {[%clk
00:06:34]} {[%emt 00:00:12]} Nc7 {[%clk 00:18:12]} {[%emt 00:01:29]} 26. Bd4
{[%clk 00:05:29]} {[%emt 00:01:15]} Ncd5 {[%clk 00:18:08]} {[%emt 00:00:14]} 27.
Bxf6 {[%clk 00:04:52]} {[%emt 00:00:48]} Nxf6 {[%clk 00:18:16]} {[%emt
00:00:01]} 28. Re1 {[%clk 00:04:36]} {[%emt 00:00:27]} Rf7 {[%clk 00:17:45]}
{[%emt 00:00:40]} 29. Nxe4 {[%clk 00:03:32]} {[%emt 00:01:14]} Nxe4 {[%clk
00:17:52]} {[%emt 00:00:02]} 30. Bxe4 {[%clk 00:03:41]} Bxe4 {[%clk 00:17:58]}
{[%emt 00:00:04]} 31. Rxe4 {[%clk 00:03:50]} h5 {[%clk 00:18:04]} {[%emt
00:00:06]} 32. Re2 {[%clk 00:02:32]} {[%emt 00:01:27]} Rf3 {[%clk 00:18:11]}
{[%emt 00:00:03]} 33. Kc1 {[%clk 00:02:26]} {[%emt 00:00:17]} Kf7 {[%clk
00:17:57]} {[%emt 00:00:23]} 34. b5 {[%clk 00:00:32]} {[%emt 00:02:04]} cxb5
{[%clk 00:17:56]} {[%emt 00:00:11]} 35. Re5 {[%clk 00:00:30]} {[%emt 00:00:12]}
Rxf2 {[%clk 00:17:40]} {[%emt 00:00:25]} 36. Rxh5 {[%clk 00:00:27]} {[%emt
00:00:14]} Rf3 {[%clk 00:17:47]} {[%emt 00:00:03]} 37. Rxb5 {[%clk 00:00:30]}
{[%emt 00:00:07]} Rxg3 {[%clk 00:17:54]} {[%emt 00:00:03]} 38. Kd2 {[%clk
00:00:27]} {[%emt 00:00:13]} Rh3 {[%clk 00:17:49]} {[%emt 00:00:14]} 39. h5
{[%clk 00:00:28]} {[%emt 00:00:10]} g3 {[%clk 00:17:21]} {[%emt 00:00:38]} 40.
Rg5 {[%clk 00:00:12]} {[%emt 00:00:26]} Kf6 {[%clk 00:16:55]} {[%emt 00:00:36]}
41. Rg6+ {[%clk 00:00:19]} {[%emt 00:00:03]} Kf5 {[%clk 00:17:02]} {[%emt
00:00:03]} 42. Ke3 {[%clk 00:00:28]} g2+ {[%clk 00:16:50]} {[%emt 00:00:21]} 43.
Kf2 {[%clk 00:00:36]} {[%emt 00:00:03]} Rc3 {[%clk 00:16:52]} {[%emt 00:00:08]}
44. Kxg2 {[%clk 00:00:43]} {[%emt 00:00:03]} Rxc2+ {[%clk 00:17:01]} {[%emt
00:00:01]} 45. Kf3 {[%clk 00:00:50]} {[%emt 00:00:03]} Rc3+ {[%clk 00:16:56]}
{[%emt 00:00:14]} 46. Ke2 {[%clk 00:00:59]} {[%emt 00:00:02]} Rc6 {[%clk
00:16:42]} {[%emt 00:00:24]} 47. Rg7 {[%clk 00:00:44]} {[%emt 00:00:25]} Kf6
{[%clk 00:16:17]} {[%emt 00:00:34]} 48. Rg8 {[%clk 00:00:52]} {[%emt 00:00:03]}
Kf7 {[%clk 00:16:17]} {[%emt 00:00:11]} 49. Rg5 {[%clk 00:00:53]} {[%emt
00:00:09]} b6 {[%clk 00:16:18]} {[%emt 00:00:09]} 50. Kd3 {[%clk 00:00:48]}
{[%emt 00:00:15]} Rf6 {[%clk 00:14:44]} {[%emt 00:01:45]} 51. Kc4 {[%clk
00:00:43]} {[%emt 00:00:14]} e6 {[%clk 00:14:52]} {[%emt 00:00:02]} 52. Rb5
{[%clk 00:00:27]} {[%emt 00:00:27]} Rf5 {[%clk 00:14:40]} {[%emt 00:00:22]} 53.
Rxb6 {[%clk 00:00:35]} {[%emt 00:00:02]} Rxh5 {[%clk 00:14:48]} {[%emt
00:00:02]} 54. Kd4 {[%clk 00:00:44]} {[%emt 00:00:01]} Kf6 {[%clk 00:14:55]}
{[%emt 00:00:03]} 55. Ke4 {[%clk 00:00:49]} {[%emt 00:00:05]} Rh4+ {[%clk
00:15:01]} {[%emt 00:00:07]} 56. Ke3 {[%clk 00:00:58]} Ra4 {[%clk 00:15:00]}
{[%emt 00:00:09]} 57. Rb5 {[%clk 00:01:04]} {[%emt 00:00:04]} e5 {[%clk
00:15:07]} {[%emt 00:00:03]} 58. Rb8 {[%clk 00:01:10]} {[%emt 00:00:04]} Kf5
{[%clk 00:14:30]} {[%emt 00:00:47]} 1/2-1/2

[Event "Vastgota Open 2022"]
[Site "Skara stadshotell, Jarnvagsgatan 5, Skara, Sweden"]
[Date "2022.10.30"]
[Round "6.4"]
[White "Kleimark, Anders"]
[Black "Madebrink, Lars"]
[Result "0-1"]
[TimeControl "30 minutes + 10 seconds per move from move one."]
[WhiteFideId "1709968"]
[BlackFideId "1701347"]
[WhiteElo "2048"]
[BlackElo "2094"]

1. d4 {[%clk 00:30:16]} Nf6 {[%clk 00:30:16]} 2. c4 {[%clk 00:30:15]} {[%emt
00:00:07]} g6 {[%clk 00:30:18]} {[%emt 00:00:09]} 3. Nf3 {[%clk 00:30:06]}
{[%emt 00:00:18]} Bg7 {[%clk 00:30:23]} {[%emt 00:00:05]} 4. Nc3 {[%clk
00:29:59]} {[%emt 00:00:17]} O-O {[%clk 00:30:25]} {[%emt 00:00:08]} 5. g3
{[%clk 00:30:01]} {[%emt 00:00:09]} d6 {[%clk 00:29:54]} {[%emt 00:00:41]} 6.
Bg2 {[%clk 00:30:05]} {[%emt 00:00:06]} Nbd7 {[%clk 00:29:39]} {[%emt
00:00:25]} 7. O-O {[%clk 00:30:01]} {[%emt 00:00:13]} c6 {[%clk 00:29:19]}
{[%emt 00:00:30]} 8. e4 {[%clk 00:29:40]} {[%emt 00:00:31]} e5 {[%clk
00:29:24]} {[%emt 00:00:05]} 9. h3 {[%clk 00:29:26]} {[%emt 00:00:24]} a5
{[%clk 00:28:52]} {[%emt 00:00:43]} 10. Re1 {[%clk 00:27:58]} {[%emt 00:01:37]}
Re8 {[%clk 00:27:51]} {[%emt 00:01:12]} 11. b3 {[%clk 00:26:27]} {[%emt
00:01:41]} exd4 {[%clk 00:26:33]} {[%emt 00:01:29]} 12. Nxd4 {[%clk 00:26:26]}
{[%emt 00:00:11]} Nc5 {[%clk 00:26:32]} {[%emt 00:00:11]} 13. Bb2 {[%clk
00:21:34]} {[%emt 00:05:02]} a4 {[%clk 00:22:17]} {[%emt 00:04:25]} 14. b4
{[%clk 00:17:55]} {[%emt 00:03:49]} a3 {[%clk 00:22:17]} {[%emt 00:00:10]} 15.
Bc1 {[%clk 00:17:56]} {[%emt 00:00:09]} Ne6 {[%clk 00:22:00]} {[%emt 00:00:27]}
16. Be3 {[%clk 00:16:40]} {[%emt 00:01:27]} Nd7 {[%clk 00:18:42]} {[%emt
00:03:27]} 17. Rc1 {[%clk 00:14:25]} {[%emt 00:02:25]} Ne5 {[%clk 00:17:54]}
{[%emt 00:00:57]} 18. Nce2 {[%clk 00:12:42]} {[%emt 00:01:53]} Nxd4 {[%clk
00:13:53]} {[%emt 00:04:12]} 19. Nxd4 {[%clk 00:11:54]} {[%emt 00:00:58]} Qe7
{[%clk 00:13:44]} {[%emt 00:00:19]} 20. f4 {[%clk 00:10:54]} {[%emt 00:01:09]}
Nd7 {[%clk 00:13:51]} {[%emt 00:00:04]} 21. Qd2 {[%clk 00:10:00]} {[%emt
00:01:04]} Bf8 {[%clk 00:12:27]} {[%emt 00:01:33]} 22. b5 {[%clk 00:08:26]}
{[%emt 00:01:46]} c5 {[%clk 00:11:37]} {[%emt 00:01:00]} 23. Ne2 {[%clk
00:08:29]} {[%emt 00:00:07]} Nb6 {[%clk 00:10:55]} {[%emt 00:00:52]} 24. Qd3
{[%clk 00:07:36]} {[%emt 00:01:03]} Be6 {[%clk 00:10:48]} {[%emt 00:00:18]} 25.
Bf2 {[%clk 00:07:10]} {[%emt 00:00:35]} Ra4 {[%clk 00:10:19]} {[%emt 00:00:39]}
26. Nc3 {[%clk 00:06:02]} {[%emt 00:01:18]} Bxc4 {[%clk 00:09:06]} {[%emt
00:01:24]} 27. Qc2 {[%clk 00:05:03]} {[%emt 00:01:08]} Rb4 {[%clk 00:09:03]}
{[%emt 00:00:13]} 28. Nd5 {[%clk 00:04:07]} {[%emt 00:01:06]} Nxd5 {[%clk
00:07:50]} {[%emt 00:01:23]} 29. exd5 {[%clk 00:04:15]} {[%emt 00:00:02]} Qd7
{[%clk 00:07:55]} {[%emt 00:00:03]} 30. Rxe8 {[%clk 00:04:16]} {[%emt
00:00:12]} Qxe8 {[%clk 00:08:04]} 31. Be1 {[%clk 00:04:16]} {[%emt 00:00:10]}
Qe3+ {[%clk 00:06:54]} {[%emt 00:01:19]} 32. Kh2 {[%clk 00:04:20]} {[%emt
00:00:07]} Bd3 {[%clk 00:06:53]} {[%emt 00:00:11]} 33. Qd1 {[%clk 00:02:34]}
{[%emt 00:01:57]} Rb2 {[%clk 00:06:19]} {[%emt 00:00:43]} 34. Rc3 {[%clk
00:02:13]} {[%emt 00:00:34]} c4 {[%clk 00:05:13]} {[%emt 00:01:13]} 35. Rxa3
{[%clk 00:01:50]} {[%emt 00:00:33]} Qc5 {[%clk 00:05:09]} {[%emt 00:00:14]} 36.
Ra8 {[%clk 00:01:35]} {[%emt 00:00:26]} Be4 {[%clk 00:04:53]} {[%emt 00:00:25]}
37. Bd2 {[%clk 00:01:44]} {[%emt 00:00:02]} Qd4 {[%clk 00:04:49]} {[%emt
00:00:14]} 38. Qe1 {[%clk 00:01:15]} {[%emt 00:00:39]} Rxd2 {[%clk 00:04:52]}
{[%emt 00:00:07]} 0-1

[Event "Vastgota Open 2022"]
[Site "Skara stadshotell, Jarnvagsgatan 5, Skara, Sweden"]
[Date "2022.10.30"]
[Round "6.5"]
[White "Wengholm, Anders"]
[Black "Thyberg, Andre"]
[Result "0-1"]
[TimeControl "30 minutes + 10 seconds per move from move one."]
[WhiteFideId "1704818"]
[BlackFideId "1764764"]
[WhiteElo "2179"]
[BlackElo "1632"]

1. Nf3 {[%clk 00:30:13]} Nf6 {[%clk 00:30:14]} {[%emt 00:00:03]} 2. c4 {[%clk
00:30:20]} {[%emt 00:00:03]} c5 {[%clk 00:30:17]} {[%emt 00:00:07]} 3. Nc3
{[%clk 00:30:20]} {[%emt 00:00:10]} d5 {[%clk 00:30:20]} {[%emt 00:00:06]} 4.
cxd5 {[%clk 00:30:23]} {[%emt 00:00:07]} Nxd5 {[%clk 00:30:25]} {[%emt
00:00:05]} 5. d4 {[%clk 00:29:10]} {[%emt 00:01:23]} g6 {[%clk 00:30:08]}
{[%emt 00:00:26]} 6. dxc5 {[%clk 00:28:23]} {[%emt 00:00:58]} Nxc3 {[%clk
00:30:12]} {[%emt 00:00:06]} 7. Qxd8+ {[%clk 00:28:31]} {[%emt 00:00:03]} Kxd8
{[%clk 00:30:15]} {[%emt 00:00:07]} 8. bxc3 {[%clk 00:28:39]} {[%emt 00:00:02]}
f6 {[%clk 00:30:05]} {[%emt 00:00:19]} 9. Nd4 {[%clk 00:22:53]} {[%emt
00:05:56]} e5 {[%clk 00:29:30]} {[%emt 00:00:46]} 10. Nb3 {[%clk 00:23:01]} a5
{[%clk 00:26:14]} {[%emt 00:03:26]} 11. Be3 {[%clk 00:21:34]} {[%emt 00:01:37]}
Be6 {[%clk 00:24:20]} {[%emt 00:02:04]} 12. g3 {[%clk 00:21:07]} {[%emt
00:00:37]} Nd7 {[%clk 00:23:37]} {[%emt 00:00:53]} 13. Bg2 {[%clk 00:16:32]}
{[%emt 00:04:45]} Kc7 {[%clk 00:23:40]} {[%emt 00:00:07]} 14. f4 {[%clk
00:07:19]} {[%emt 00:09:23]} a4 {[%clk 00:22:14]} {[%emt 00:01:37]} 15. Nd2
{[%clk 00:07:28]} {[%emt 00:00:01]} Bxc5 {[%clk 00:21:59]} {[%emt 00:00:24]} 16.
Bxc5 {[%clk 00:07:21]} {[%emt 00:00:17]} Nxc5 {[%clk 00:22:04]} {[%emt
00:00:05]} 17. fxe5 {[%clk 00:07:17]} {[%emt 00:00:14]} fxe5 {[%clk 00:21:30]}
{[%emt 00:00:43]} 18. Nf3 {[%clk 00:06:57]} {[%emt 00:00:32]} Bd5 {[%clk
00:20:28]} {[%emt 00:01:11]} 19. O-O {[%clk 00:07:02]} {[%emt 00:00:04]} Bxf3
{[%clk 00:18:36]} {[%emt 00:02:03]} 20. exf3 {[%clk 00:07:01]} {[%emt
00:00:11]} Rad8 {[%clk 00:17:54]} {[%emt 00:00:52]} 21. Rfe1 {[%clk 00:05:38]}
{[%emt 00:01:33]} Rhe8 {[%clk 00:17:07]} {[%emt 00:00:56]} 22. Bf1 {[%clk
00:04:15]} {[%emt 00:01:34]} Rd2 {[%clk 00:14:52]} {[%emt 00:02:25]} 23. Bb5
{[%clk 00:04:17]} {[%emt 00:00:08]} Re6 {[%clk 00:14:57]} {[%emt 00:00:05]} 24.
Re3 {[%clk 00:04:08]} {[%emt 00:00:19]} Rb6 {[%clk 00:11:14]} {[%emt 00:03:53]}
25. Bf1 {[%clk 00:00:50]} {[%emt 00:03:28]} Kd6 {[%clk 00:10:04]} {[%emt
00:01:20]} 26. Rae1 {[%clk 00:00:53]} {[%emt 00:00:07]} Rbb2 {[%clk 00:08:25]}
{[%emt 00:01:49]} 27. Rxe5 {[%clk 00:00:52]} {[%emt 00:00:10]} Rxh2 {[%clk
00:07:44]} {[%emt 00:00:51]} 28. f4 {[%clk 00:00:26]} {[%emt 00:00:37]} Rxa2
{[%clk 00:07:36]} {[%emt 00:00:18]} 29. Rd1+ {[%clk 00:00:34]} {[%emt
00:00:02]} Rhd2 {[%clk 00:07:07]} {[%emt 00:00:38]} 30. Rde1 {[%clk 00:00:12]}
{[%emt 00:00:33]} Rac2 {[%clk 00:06:41]} {[%emt 00:00:35]} 31. Re8 {[%clk
00:00:20]} {[%emt 00:00:03]} Rxc3 {[%clk 00:05:42]} {[%emt 00:01:09]} 32. Rd8+
{[%clk 00:00:21]} {[%emt 00:00:09]} Nd7 {[%clk 00:05:51]} 0-1